bitfinex/quotes_SOLUSD_20241105
["timestamp","ask_amount","ask_price","bid_price","bid_amount"]
[1730778660615,0.3096875,159.47,159.46,12.09983669]
[1730778664613,0.3096875,159.47,159.45,12.09983669]
[1730778664993,0.3096875,159.47,159.46,12.09983669]
[1730778668222,6.5803875,159.47,159.45,12.09983669]
[1730778668515,6.5803875,159.47,159.44,12.09983669]
[1730778670212,6.5803875,159.47,159.45,12.09983669]
[1730778670409,0.3096875,159.47,159.46,12.09983669]
[1730778670925,28.60962419,159.55,159.47,23.876884]
[1730778670926,6.5772875,159.55,159.47,23.876884]
[1730778671092,0.3096875,159.55,159.53,12.09983669]
[1730778671692,0.3096875,159.55,159.54,12.09983669]
[1730778678839,6.5772875,159.55,159.53,12.09983669]
[1730778679330,6.5772875,159.55,159.49,22.2962]
[1730778679331,34.34612419,159.55,159.49,12.09983669]
[1730778680035,34.34612419,159.55,159.5,12.09983669]
[1730778682613,12.09983669,159.53,159.47,12.09983669]
[1730778682931,12.09983669,159.54,159.48,12.09983669]
[1730778683714,12.09983669,159.53,159.48,12.09983669]
[1730778683911,12.09983669,159.54,159.48,12.09983669]
[1730778684115,6.268,159.54,159.49,12.09983669]
[1730778685238,18.36783669,159.54,159.48,12.09983669]
[1730778685435,12.09983669,159.53,159.47,12.09983669]
[1730778686444,12.09983669,159.53,159.48,12.09983669]
[1730778688422,6.2688,159.52,159.48,12.09983669]
[1730778689045,18.36863669,159.52,159.47,12.09983669]
[1730778689221,12.09983669,159.51,159.46,12.09983669]
[1730778691437,6.2695,159.5,159.46,12.09983669]
[1730778691824,6.2695,159.5,159.47,12.09983669]
[1730778692625,15.9786875,159.55,159.44,21.9508]
[1730778692626,6.2691,159.51,159.48,12.09983669]
[1730778693643,6.2684,159.53,159.48,12.09983669]
[1730778694059,12.09983669,159.51,159.45,12.09983669]
[1730778694949,12.09983669,159.51,159.46,12.09983669]
[1730778695245,6.2695,159.5,159.46,12.09983669]
[1730778695628,18.36933669,159.5,159.45,12.09983669]
[1730778696025,6.2695,159.5,159.45,12.09983669]
[1730778697639,6.2695,159.5,159.46,12.09983669]
[1730778699540,27.77183669,159.52,159.46,12.09983669]
[1730778699747,18.36893669,159.51,159.45,12.09983669]
[1730778700134,6.2691,159.51,159.46,12.09983669]
[1730778704936,6.2691,159.51,159.45,12.09983669]
[1730778704937,18.36893669,159.51,159.45,12.09983669]
[1730778707551,12.09983669,159.5,159.45,12.09983669]
[1730778708135,13.50035661,159.55,159.49,12.09983669]
[1730778708340,6.268,159.54,159.5,12.09983669]
[1730778708634,1.40051992,159.55,159.52,12.09983669]
[1730778708635,6.5772875,159.55,159.52,12.09983669]
[1730778708839,6.5772875,159.55,159.51,12.09983669]
[1730778709436,0.3096875,159.55,159.52,12.09983669]
[1730778709764,0.3096875,159.55,159.53,12.09983669]
[1730778711733,0.3096875,159.55,159.54,12.09983669]
[1730778712339,0.3096875,159.55,159.52,12.09983669]
[1730778716768,0.3096875,159.55,159.52,18.36853669]
[1730778719371,0.3096875,159.55,159.52,12.09983669]
[1730778719668,0.3096875,159.55,159.54,12.09983669]
[1730778722773,0.3096875,159.55,159.54,18.36783669]
[1730778724176,0.3096875,159.55,159.53,27.60763669]
[1730778724356,0.3096875,159.55,159.52,12.09983669]
[1730778724561,6.5772875,159.55,159.52,12.09983669]
[1730778724776,0.3096875,159.55,159.53,12.09983669]
[1730778732681,6.5775875,159.55,159.52,12.09983669]
[1730778733474,6.5775875,159.55,159.53,12.09983669]
[1730778735673,6.5775875,159.55,159.52,12.09983669]
[1730778737872,6.5775875,159.55,159.53,12.09983669]
[1730778738183,0.3096875,159.55,159.54,12.09983669]
[1730778739385,0.3096875,159.55,159.54,28.59073669]
[1730778739971,0.3096875,159.55,159.54,34.85873669]
[1730778740387,0.3096875,159.55,159.54,58.76111069]
[1730778748106,0.3096875,159.55,159.54,34.85873669]
[1730778751579,0.3096875,159.55,159.54,12.09983669]
[1730778753698,0.3096875,159.55,159.54,18.36783669]
[1730778758076,0.3096875,159.55,159.54,12.09983669]
[1730778758397,0.3096875,159.55,159.54,18.36783669]
[1730778765832,0.3096875,159.55,159.54,12.09983669]
[1730778770813,0.3096875,159.55,159.54,18.36783669]
[1730778771014,0.3096875,159.55,159.54,42.27021069]
[1730778772015,0.3096875,159.55,159.54,12.09983669]
[1730778772238,0.3096875,159.55,159.54,18.36783669]
[1730778775136,0.3096875,159.55,159.54,42.27021069]
[1730778777641,0.3096875,159.55,159.54,42.72119069]
[1730778778134,0.3096875,159.55,159.54,44.93125281]
[1730778778743,0.36067077,159.61,159.6,12.09983669]
[1730778781415,0.36067077,159.61,159.59,12.09983669]
[1730778782519,0.36067077,159.61,159.6,12.09983669]
[1730778784035,0.36067077,159.61,159.59,12.09983669]
[1730778788750,0.36067077,159.61,159.6,12.09983669]
[1730778789952,0.36067077,159.61,159.59,12.09983669]
[1730778791046,24.76330746,159.61,159.55,12.09983669]
[1730778791842,24.76330746,159.61,159.54,12.09983669]
[1730778791843,12.09983669,159.6,159.54,12.09983669]
[1730778792848,18.36583669,159.59,159.54,12.09983669]
[1730778793257,6.266,159.59,159.54,12.09983669]
[1730778793945,12.09983669,159.59,159.54,12.09983669]
[1730778794637,18.36543669,159.6,159.54,12.09983669]
[1730778795241,18.36543669,159.6,159.55,12.09983669]
[1730778795662,18.36543669,159.6,159.54,12.09983669]
[1730778795841,12.09983669,159.59,159.54,12.09983669]
[1730778796840,18.36543669,159.6,159.54,12.09983669]
[1730778797040,6.2664,159.58,159.54,12.09983669]
[1730778797671,6.2664,159.58,159.53,12.09983669]
[1730778797957,6.2664,159.58,159.5,12.09983669]
[1730778797958,12.09983669,159.56,159.5,12.09983669]
[1730778798565,12.09983669,159.56,159.51,12.09983669]
[1730778798866,12.09983669,159.57,159.51,12.09983669]
[1730778799165,18.36703669,159.56,159.51,12.09983669]
[1730778800667,6.2672,159.56,159.52,12.09983669]
[1730778801940,12.09983669,159.57,159.51,12.09983669]
[1730778802159,18.36663669,159.57,159.51,12.09983669]
[1730778802963,6.2676,159.55,159.51,12.09983669]
[1730778803261,6.2676,159.55,159.5,18.36933669]
[1730778804240,6.2676,159.55,159.51,12.09983669]
[1730778805259,12.09983669,159.57,159.51,12.09983669]
[1730778805450,6.2672,159.56,159.51,12.09983669]
[1730778805973,18.36703669,159.56,159.51,12.09983669]
[1730778808750,12.09983669,159.56,159.51,12.09983669]
[1730778808946,6.2664,159.58,159.54,12.09983669]
[1730778809552,6.2664,159.58,159.53,12.09983669]
[1730778810850,12.09983669,159.55,159.5,12.09983669]
[1730778811064,21.9325,159.58,159.51,12.09983669]
[1730778811065,12.09983669,159.57,159.51,12.09983669]
[1730778811450,34.03233669,159.58,159.52,12.09983669]
[1730778812778,6.2664,159.58,159.53,12.09983669]
[1730778813393,12.09983669,159.6,159.55,12.09983669]
[1730778813581,18.36543669,159.6,159.54,12.09983669]
[1730778815286,12.09983669,159.59,159.54,12.09983669]
[1730778815455,12.09983669,159.58,159.53,12.09983669]
[1730778815852,12.09983669,159.59,159.53,12.09983669]
[1730778816260,18.36543669,159.6,159.54,12.09983669]
[1730778816464,18.36543669,159.6,159.55,12.09983669]
[1730778816665,18.36543669,159.6,159.54,12.09983669]
[1730778818272,18.36543669,159.6,159.55,12.09983669]
[1730778818273,6.2656,159.6,159.55,12.09983669]
[1730778818478,6.39827077,159.61,159.57,12.09983669]
[1730778818789,18.72580746,159.61,159.56,12.09983669]
[1730778819091,18.72580746,159.61,159.55,12.09983669]
[1730778819668,12.09983669,159.6,159.54,12.09983669]
[1730778819882,12.09983669,159.6,159.53,21.9394]
[1730778819883,12.09983669,159.6,159.55,12.09983669]
[1730778820480,18.72580746,159.61,159.55,12.09983669]
[1730778821965,18.36583669,159.6,159.55,12.09983669]
[1730778823266,6.266,159.6,159.55,12.09983669]
[1730778823581,12.46050746,159.61,159.56,12.09983669]
[1730778823781,0.36067077,159.61,159.57,12.09983669]
[1730778824589,12.46050746,159.61,159.56,18.36673669]
[1730778824790,12.09983669,159.6,159.55,27.76883669]
[1730778825472,18.72580746,159.61,159.55,34.03643669]
[1730778825967,18.72580746,159.61,159.56,12.09983669]
[1730778826193,18.72580746,159.61,159.55,27.76883669]
[1730778827092,18.72580746,159.61,159.55,34.03643669]
[1730778828780,0.36067077,159.61,159.57,12.09983669]
[1730778829383,0.36067077,159.61,159.58,12.09983669]
[1730778829683,0.36067077,159.61,159.55,15.669]
[1730778829684,0.36067077,159.61,159.59,12.09983669]
[1730778829998,0.36067077,159.61,159.6,12.09983669]
[1730778830485,0.36067077,159.61,159.59,12.09983669]
[1730778830695,0.36067077,159.61,159.59,6.266]
[1730778832708,0.36067077,159.61,159.59,18.36583669]
[1730778833001,0.36067077,159.61,159.59,6.266]
[1730778833303,0.36067077,159.61,159.58,15.666]
[1730778833980,0.36067077,159.61,159.58,27.76583669]
[1730778834181,0.36067077,159.61,159.58,15.666]
[1730778834484,6.62607077,159.61,159.56,18.36693669]
[1730778835086,0.36067077,159.61,159.57,12.09983669]
[1730778835391,0.36067077,159.61,159.58,12.09983669]
[1730778835596,6.62597077,159.61,159.58,12.09983669]
[1730778835789,0.36067077,159.61,159.58,12.09983669]
[1730778836903,0.36067077,159.61,159.57,18.36653669]
[1730778838707,6.4642,159.59,159.54,12.09983669]
[1730778839407,6.62627077,159.61,159.56,12.09983669]
[1730778839622,6.62627077,159.61,159.57,12.09983669]
[1730778839905,0.36067077,159.61,159.57,12.09983669]
[1730778840282,0.36067077,159.61,159.56,18.36703669]
[1730778840487,6.62597077,159.61,159.56,18.36703669]
[1730778841291,6.62597077,159.61,159.56,12.09983669]
[1730778841484,0.36067077,159.61,159.57,12.09983669]
[1730778842009,6.62587077,159.61,159.57,12.09983669]
[1730778842520,0.36067077,159.61,159.57,12.09983669]
[1730778843516,0.36067077,159.61,159.56,34.03503669]
[1730778844014,0.36067077,159.61,159.55,16.0636]
[1730778844015,12.09983669,159.6,159.55,16.0636]
[1730778844310,6.62617077,159.61,159.54,12.09983669]
[1730778844311,12.09983669,159.59,159.54,12.09983669]
[1730778844690,12.09983669,159.6,159.54,12.09983669]
[1730778844910,18.72600746,159.61,159.55,12.09983669]
[1730778845703,18.72600746,159.61,159.51,49.73793669]
[1730778845704,12.09983669,159.57,159.51,49.73793669]
[1730778846014,6.2672,159.56,159.51,49.73793669]
[1730778846211,6.2665,159.58,159.54,12.09983669]
[1730778847723,6.2665,159.58,159.53,12.09983669]
[1730778848019,6.2659,159.6,159.56,12.09983669]
[1730778848397,6.2659,159.6,159.55,12.09983669]
[1730778849105,18.36573669,159.6,159.54,12.09983669]
[1730778849414,18.36573669,159.6,159.52,15.672]
[1730778849415,6.2659,159.6,159.55,12.09983669]
[1730778849607,0.36067077,159.61,159.57,12.09983669]
[1730778852890,6.62587077,159.61,159.57,12.09983669]
[1730778853718,0.36067077,159.61,159.57,18.36653669]
[1730778854397,0.36067077,159.61,159.57,6.2667]
[1730778854604,0.36067077,159.61,159.58,12.09983669]
[1730778855399,0.36067077,159.61,159.59,12.09983669]
[1730778855815,0.36067077,159.61,159.58,34.03223669]
[1730778856301,0.36067077,159.61,159.59,12.09983669]
[1730778856601,0.36067077,159.61,159.58,34.03223669]
[1730778857592,0.36067077,159.61,159.59,12.09983669]
[1730778857793,0.36067077,159.61,159.6,6.2656]
[1730778859820,0.36067077,159.61,159.6,86.19635436]
[1730778860006,0.36067077,159.61,159.6,45.93522467]
[1730778861208,0.36067077,159.61,159.6,43.73776106]
[1730778861513,0.36067077,159.61,159.6,43.73933331]
[1730778862115,0.36067077,159.61,159.6,63.83933331]
[1730778862323,0.36067077,159.61,159.6,66.03729281]
[1730778862521,0.36067077,159.61,159.6,65.93729281]
[1730778863019,0.36067077,159.61,159.6,138.33901357]
[1730778864812,0.36067077,159.61,159.6,138.33802596]
[1730778865021,0.36067077,159.61,159.6,138.58900596]
[1730778866717,0.36067077,159.61,159.6,142.10229651]
[1730778867427,0.3096875,159.63,159.62,0.1]
[1730778867626,0.3096875,159.63,159.62,59.81578631]
[1730778868417,0.3096875,159.63,159.62,56.10221069]
[1730778868608,0.3096875,159.63,159.62,59.80919541]
[1730778868809,0.3096875,159.63,159.62,56.10221069]
[1730778869011,0.3096875,159.63,159.62,59.70925625]
[1730778869312,0.3096875,159.63,159.62,15.80688225]
[1730778869530,0.3096875,159.63,159.62,6.2648]
[1730778869712,0.3096875,159.63,159.61,12.09983669]
[1730778870241,0.3096875,159.63,159.62,12.09983669]
[1730778871227,0.3096875,159.63,159.61,18.36473669]
[1730778872223,0.3096875,159.63,159.62,12.09983669]
[1730778873514,0.3096875,159.63,159.62,18.36463669]
[1730778874727,0.3096875,159.63,159.62,38.46463669]
[1730778877325,0.3096875,159.63,159.62,38.36463669]
[1730778877525,0.3096875,159.63,159.62,38.46463669]
[1730778877840,0.3096875,159.63,159.62,55.12433669]
[1730778878219,0.3096875,159.63,159.62,55.02433669]
[1730778879018,0.3096875,159.63,159.62,18.36463669]
[1730778880023,0.3096875,159.63,159.6,18.36533669]
[1730778880551,0.3096875,159.63,159.62,12.09983669]
[1730778880842,0.3096875,159.63,159.61,12.09983669]
[1730778881015,0.3096875,159.63,159.61,18.36493669]
[1730778881625,0.3096875,159.63,159.57,12.09983669]
[1730778881626,12.09983669,159.62,159.57,12.09983669]
[1730778882026,6.5742875,159.63,159.59,12.09983669]
[1730778883661,12.09983669,159.62,159.57,21.9337]
[1730778883821,12.09983669,159.62,159.57,15.6669]
[1730778884151,12.09983669,159.58,159.52,12.09983669]
[1730778884451,12.09983669,159.57,159.52,12.09983669]
[1730778884827,18.51683669,159.58,159.52,12.09983669]
[1730778885259,6.2668,159.57,159.52,18.36853669]
[1730778885454,18.36663669,159.57,159.52,18.36853669]
[1730778885629,18.36663669,159.57,159.51,12.09983669]
[1730778886325,12.09983669,159.56,159.51,12.09983669]
[1730778886523,18.36663669,159.57,159.51,12.09983669]
[1730778887150,18.36663669,159.57,159.51,18.36873669]
[1730778887343,12.09983669,159.56,159.51,18.36873669]
[1730778887654,18.36663669,159.57,159.51,18.36873669]
[1730778889051,18.36713669,159.56,159.51,18.36873669]
[1730778889254,18.36713669,159.56,159.51,18.36893669]
[1730778889950,6.2673,159.56,159.51,18.36893669]
[1730778890833,18.36663669,159.57,159.52,12.09983669]
[1730778891250,12.09983669,159.56,159.51,18.36893669]
[1730778891751,18.36663669,159.57,159.51,18.36893669]
[1730778893039,24.78323669,159.58,159.53,12.09983669]
[1730778895659,24.78323669,159.58,159.53,18.36793669]
[1730778896243,6.2661,159.59,159.55,12.09983669]
[1730778897745,18.36553669,159.6,159.55,18.36733669]
[1730778897942,18.36553669,159.6,159.54,34.03773669]
[1730778898359,18.67412419,159.63,159.57,12.09983669]
[1730778898551,18.67412419,159.63,159.57,18.36633669]
[1730778899150,0.3096875,159.63,159.61,12.09983669]
[1730778899967,0.3096875,159.63,159.6,12.09983669]
[1730778900871,0.3096875,159.63,159.61,18.36503669]
[1730778901542,0.3096875,159.63,159.61,6.2652]
[1730778902357,0.3096875,159.63,159.6,27.76353669]
[1730778902676,6.5742875,159.63,159.58,18.36623669]
[1730778902851,18.67412419,159.63,159.58,18.36623669]
[1730778903364,6.5742875,159.63,159.58,18.36623669]
[1730778903672,18.67412419,159.63,159.57,18.36653669]
[1730778904172,18.67412419,159.63,159.57,12.09983669]
[1730778904761,18.67412419,159.63,159.58,12.09983669]
[1730778904948,6.5742875,159.63,159.6,12.09983669]
[1730778907367,6.5742875,159.63,159.59,12.09983669]
[1730778908265,6.5742875,159.63,159.58,12.09983669]
[1730778908962,0.3096875,159.63,159.6,12.09983669]
[1730778910069,0.3096875,159.63,159.59,18.36583669]
[1730778910267,0.3096875,159.63,159.6,12.09983669]
[1730778910850,0.3096875,159.63,159.61,12.09983669]
[1730778911465,0.3096875,159.63,159.62,12.09983669]
[1730778911870,0.3096875,159.63,159.62,18.36463669]
[1730778913648,0.3096875,159.63,159.62,62.61799069]
[1730778914348,0.3096875,159.63,159.62,62.36701069]
[1730778914674,0.3096875,159.63,159.62,62.26701069]
[1730778914845,0.3096875,159.63,159.62,62.36701069]
[1730778915957,0.3096875,159.63,159.62,62.26701069]
[1730778916159,0.3096875,159.63,159.62,62.36701069]
[1730778919080,0.3096875,159.71,159.62,62.71799069]
[1730778919376,0.3096875,159.71,159.69,12.09983669]
[1730778920781,0.3096875,159.71,159.68,12.09983669]
[1730778921376,6.5710875,159.71,159.67,12.09983669]
[1730778923983,0.3096875,159.71,159.68,12.09983669]
[1730778925889,0.3096875,159.71,159.67,12.09983669]
[1730778926180,0.12549,159.7,159.66,12.09983669]
[1730778926373,12.09983669,159.7,159.64,12.09983669]
[1730778926574,18.67112419,159.71,159.66,12.09983669]
[1730778926779,6.5712875,159.71,159.67,12.09983669]
[1730778926971,18.67112419,159.71,159.66,12.09983669]
[1730778928259,18.67112419,159.71,159.65,18.36333669]
[1730778929079,18.67112419,159.71,159.65,12.09983669]
[1730778929281,6.5712875,159.71,159.64,12.09983669]
[1730778929463,12.09983669,159.7,159.64,12.09983669]
[1730778929671,12.09983669,159.7,159.65,12.09983669]
[1730778930657,18.33893669,159.68,159.62,27.76153669]
[1730778931366,6.2629,159.67,159.62,27.76153669]
[1730778931580,6.2629,159.67,159.62,12.09983669]
[1730778931777,6.2627,159.68,159.63,12.09983669]
[1730778931988,6.8580875,159.71,159.67,12.09983669]
[1730778932173,13.1194875,159.71,159.67,12.09983669]
[1730778932490,0.3096875,159.71,159.68,12.09983669]
[1730778933197,0.3096875,159.71,159.67,12.09983669]
[1730778933369,6.5710875,159.71,159.67,12.09983669]
[1730778933563,6.5710875,159.71,159.68,12.09983669]
[1730778934864,0.3096875,159.71,159.69,12.09983669]
[1730778936690,0.3096875,159.71,159.7,12.09983669]
[1730778936991,0.3096875,159.71,159.69,12.09983669]
[1730778938186,6.5712875,159.71,159.68,12.09983669]
[1730778938496,6.5712875,159.71,159.67,12.09983669]
[1730778942583,6.5712875,159.71,159.66,37.5174]
[1730778942584,6.5712875,159.71,159.66,49.61723669]
[1730778942778,6.5712875,159.71,159.67,12.09983669]
[1730778943890,6.5712875,159.71,159.66,49.61723669]
[1730778944191,6.5712875,159.71,159.66,12.09983669]
[1730778944382,6.5712875,159.71,159.63,15.661]
[1730778944383,12.09983669,159.7,159.65,12.09983669]
[1730778945695,12.09983669,159.69,159.64,12.09983669]
[1730778946581,6.2625,159.68,159.64,12.09983669]
[1730778947595,18.36153669,159.7,159.64,12.09983669]
[1730778948878,6.2617,159.7,159.65,12.09983669]
[1730778951312,6.2617,159.7,159.66,12.09983669]
[1730778951614,6.2617,159.7,159.65,12.09983669]
[1730778954080,6.2617,159.7,159.65,18.36343669]
[1730778954281,6.2617,159.7,159.65,12.09983669]
[1730778955487,12.09983669,159.69,159.63,27.76083669]
[1730778956905,12.09983669,159.68,159.62,27.18253669]
[1730778957092,12.09983669,159.68,159.63,12.09983669]
[1730778957685,6.5710875,159.71,159.66,12.09983669]
[1730778958493,6.5710875,159.71,159.68,12.09983669]
[1730778959503,6.5710875,159.71,159.67,18.36253669]
[1730778959706,0.3096875,159.71,159.67,18.36253669]
[1730778961806,0.3096875,159.71,159.67,6.2627]
[1730778962287,6.5710875,159.71,159.67,6.2627]
[1730778962487,6.5710875,159.71,159.67,18.36253669]
[1730778962702,6.5710875,159.71,159.67,6.2627]
[1730778963413,6.5710875,159.71,159.67,12.09983669]
[1730778963712,0.3096875,159.71,159.66,12.09983669]
[1730778963904,6.5709875,159.71,159.66,12.09983669]
[1730778964708,0.3096875,159.71,159.67,12.09983669]
[1730778965803,6.2617,159.7,159.66,18.36273669]
[1730778967303,6.5709875,159.71,159.66,12.09983669]
[1730778969005,18.67082419,159.71,159.65,27.75823669]
[1730778969192,12.09983669,159.7,159.65,15.6584]
[1730778969594,0.3096875,159.71,159.67,12.09983669]
[1730778969819,0.3096875,159.71,159.68,12.09983669]
[1730778973210,0.3096875,159.71,159.67,12.09983669]
[1730778974223,0.3096875,159.71,159.68,12.09983669]
[1730778974937,0.3096875,159.71,159.67,12.09983669]
[1730778976126,0.3096875,159.71,159.67,18.36263669]
[1730778976698,0.3096875,159.71,159.68,12.09983669]
[1730778977013,0.3096875,159.71,159.69,12.09983669]
[1730778977198,0.3096875,159.71,159.68,12.09983669]
[1730778979623,0.3096875,159.71,159.68,18.36233669]
[1730778979824,0.3096875,159.71,159.69,12.09983669]
[1730778980232,0.3096875,159.71,159.7,12.09983669]
[1730778980530,0.3096875,159.71,159.69,12.09983669]
[1730778981039,0.3096875,159.71,159.69,18.36193669]
[1730778981827,0.3096875,159.71,159.7,12.09983669]
[1730778984757,0.3096875,159.71,159.69,34.01723669]
[1730778985823,0.3096875,159.71,159.69,12.09983669]
[1730778986059,0.3096875,159.71,159.68,12.09983669]
[1730778987339,0.3096875,159.71,159.7,12.09983669]
[1730778988652,0.3096875,159.71,159.7,18.36153669]
[1730778989028,0.37647,159.69,159.61,3.67236928]
[1730778989224,0.37647,159.69,159.62,17.99117137]
[1730778989225,12.09983669,159.68,159.62,17.99117137]
[1730778989424,12.09983669,159.68,159.62,12.09983669]
[1730778989624,17.991172,159.68,159.63,12.09983669]
[1730778989942,30.09100869,159.68,159.6,6.2656]
[1730778990142,6.2629,159.67,159.6,21.9297]
[1730778990333,6.2629,159.67,159.62,12.09983669]
[1730778991130,6.2629,159.67,159.61,12.09983669]
[1730778991131,18.36273669,159.67,159.61,12.09983669]
[1730778992532,12.09983669,159.66,159.6,12.09983669]
[1730778992765,18.38363669,159.65,159.59,12.09983669]
[1730778992924,18.38363669,159.65,159.6,12.09983669]
[1730778993130,6.2838,159.65,159.61,12.09983669]
[1730778993331,6.2838,159.65,159.62,12.09983669]
[1730778993961,6.2838,159.65,159.61,12.09983669]
[1730778994343,12.5477,159.65,159.61,12.09983669]
[1730778994759,12.5477,159.65,159.59,21.9311]
[1730778995049,24.64753669,159.65,159.59,12.09983669]
[1730778995259,12.09983669,159.64,159.59,12.09983669]
[1730778995627,12.09983669,159.64,159.58,15.3244]
[1730778995628,12.09983669,159.63,159.58,12.09983669]
[1730778995833,12.09983669,159.64,159.59,12.09983669]
[1730778996048,0.37647,159.64,159.59,12.09983669]
[1730778996252,6.2644,159.63,159.59,12.09983669]
[1730779001456,6.2644,159.63,159.58,12.09983669]
[1730779003755,21.9334,159.63,159.59,12.09983669]
[1730779005040,34.03323669,159.63,159.58,12.09983669]
[1730779009973,12.09983669,159.62,159.57,12.09983669]
[1730779010143,37.5946,159.63,159.58,12.09983669]
[1730779010346,49.69443669,159.63,159.58,12.09983669]
[1730779010685,34.03323669,159.63,159.58,12.09983669]
[1730779014068,34.03323669,159.63,159.57,12.09983669]
[1730779014255,12.09983669,159.61,159.55,12.09983669]
[1730779014571,12.09983669,159.61,159.56,12.09983669]
[1730779015377,6.2656,159.6,159.56,12.09983669]
[1730779016968,18.365437,159.6,159.56,12.09983669]
[1730779017172,18.365437,159.6,159.55,12.09983669]
[1730779017877,6.2656,159.6,159.55,12.09983669]
[1730779018173,6.2656,159.6,159.56,12.09983669]
[1730779019354,6.2656,159.6,159.55,12.09983669]
[1730779020184,24.96623669,159.6,159.54,12.09983669]
[1730779020390,12.09983669,159.59,159.54,12.09983669]
[1730779020561,12.09983669,159.58,159.53,12.09983669]
[1730779021266,6.2664,159.58,159.53,12.09983669]
[1730779021481,6.2664,159.58,159.54,12.09983669]
[1730779023295,6.2664,159.58,159.55,12.09983669]
[1730779023473,82.09983669,159.63,159.57,12.09983669]
[1730779023663,12.09983669,159.63,159.57,12.09983669]
[1730779023862,27.77273669,159.63,159.57,12.09983669]
[1730779024579,6.2648,159.62,159.57,12.09983669]
[1730779024977,18.36463669,159.62,159.57,12.09983669]
[1730779025177,18.36463669,159.62,159.56,12.09983669]
[1730779025381,18.36463669,159.62,159.57,12.09983669]
[1730779025577,18.72323669,159.64,159.59,12.09983669]
[1730779025796,6.2645,159.63,159.59,12.09983669]
[1730779025973,6.2645,159.63,159.6,12.09983669]
[1730779026393,6.2637,159.65,159.61,12.09983669]
[1730779026570,6.2633,159.66,159.61,12.09983669]
[1730779026972,18.36313669,159.66,159.61,12.09983669]
[1730779027499,18.36313669,159.66,159.6,12.09983669]
[1730779027796,12.09983669,159.65,159.6,12.09983669]
[1730779028206,18.36313669,159.66,159.6,12.09983669]
[1730779030199,18.36313669,159.66,159.61,12.09983669]
[1730779031009,18.36313669,159.66,159.6,12.09983669]
[1730779032417,12.09983669,159.65,159.59,12.09983669]
[1730779032985,12.09983669,159.64,159.59,12.09983669]
[1730779033916,6.264,159.64,159.59,12.09983669]
[1730779035083,18.36383669,159.64,159.58,12.09983669]
[1730779036113,6.264,159.64,159.59,12.09983669]
[1730779039218,18.36383669,159.64,159.58,12.09983669]
[1730779040717,12.09983669,159.63,159.57,12.09983669]
[1730779041095,18.36383669,159.64,159.59,12.09983669]
[1730779041322,6.264,159.64,159.6,12.09983669]
[1730779041620,6.264,159.64,159.59,12.09983669]
[1730779042021,18.36383669,159.64,159.59,12.09983669]
[1730779043099,18.36383669,159.64,159.6,12.09983669]
[1730779043100,6.264,159.64,159.6,12.09983669]
[1730779043296,6.264,159.64,159.61,12.09983669]
[1730779044218,6.2637,159.65,159.61,12.09983669]
[1730779045817,6.2633,159.66,159.62,12.09983669]
[1730779046522,6.2633,159.66,159.61,6.2652]
[1730779046523,6.2633,159.66,159.61,18.36503669]
[1730779046901,6.2633,159.66,159.61,12.09983669]
[1730779050825,6.2633,159.66,159.61,18.36493669]
[1730779051026,6.2633,159.66,159.61,12.09983669]
[1730779054131,12.09983669,159.66,159.6,18.36533669]
[1730779054805,12.09983669,159.65,159.6,18.36533669]
[1730779055007,12.09983669,159.65,159.6,12.09983669]
[1730779055740,12.09983669,159.66,159.6,12.09983669]
[1730779056023,12.09983669,159.65,159.59,49.09033669]
[1730779056322,18.36383669,159.64,159.59,15.0601]
[1730779056529,12.09983669,159.63,159.59,15.0601]
[1730779057431,18.36383669,159.64,159.59,15.0601]
[1730779058918,6.264,159.64,159.6,12.09983669]
[1730779059827,18.36313669,159.66,159.6,12.09983669]
[1730779060140,12.09983669,159.65,159.6,12.09983669]
[1730779061020,6.264,159.64,159.6,12.09983669]
[1730779061917,6.264,159.64,159.59,49.09093669]
[1730779062427,18.36313669,159.66,159.6,12.09983669]
[1730779065525,18.36313669,159.66,159.61,12.09983669]
[1730779066421,12.09983669,159.65,159.6,18.36533669]
[1730779066945,12.09983669,159.65,159.59,27.15993669]
[1730779067138,12.09983669,159.63,159.59,15.0601]
[1730779067450,12.09983669,159.64,159.59,27.15993669]
[1730779070223,6.2644,159.63,159.59,27.15993669]
[1730779071235,6.264,159.64,159.59,27.15993669]
[1730779072022,18.36383669,159.64,159.59,27.15993669]
[1730779073428,6.264,159.64,159.6,5.90714222]
[1730779073645,6.264,159.64,159.6,12.09983669]
[1730779075228,12.09983669,159.66,159.61,12.09983669]
[1730779076346,6.2637,159.65,159.61,12.09983669]
[1730779076731,18.36353669,159.65,159.6,18.36543669]
[1730779076927,18.36353669,159.65,159.61,5.90612073]
[1730779077248,18.36353669,159.65,159.6,18.36543669]
[1730779077423,18.36353669,159.65,159.61,3.69652515]
[1730779077628,18.36353669,159.65,159.6,18.36543669]
[1730779077845,18.36353669,159.65,159.61,3.69663844]
[1730779078033,18.36353669,159.65,159.6,18.36543669]
[1730779079041,18.36353669,159.65,159.61,3.69655914]
[1730779079249,18.36353669,159.65,159.6,18.36543669]